fUST/lending_fUST_20260603
["ID","MTS","AMOUNT","RATE_DAILY","PERIOD"]
[423854263,1780452641000,-500.0,0.00018391,2]
[423854261,1780452641000,-300.0,0.00018096,2]
[423854262,1780452641000,-300.0,0.00018096,2]
[423854260,1780452641000,-300.0,0.00018096,2]
[423854258,1780452641000,-300.0,0.00018096,2]
[423854257,1780452641000,-300.0,0.00018096,2]
[423854259,1780452641000,-300.0,0.00018096,2]
[423854255,1780452641000,-300.0,0.00018096,2]
[423854253,1780452641000,-300.0,0.00018096,2]
[423854254,1780452641000,-300.0,0.00018096,2]
[423854252,1780452641000,-300.0,0.00018096,2]
[423854250,1780452641000,-300.0,0.00018096,2]
[423854251,1780452641000,-300.0,0.00018096,2]
[423854248,1780452641000,-300.0,0.00018096,2]
[423854249,1780452641000,-300.0,0.00018096,2]
[423854247,1780452641000,-1000.0,0.00018,2]
[423854246,1780452641000,-160.0,0.00017215,2]
[423854245,1780452641000,-2252.6686464,0.00016537,2]
[423854244,1780452641000,-441.75533702,0.00016372,2]
[423854265,1780452641000,-210.545,0.0001848,2]
[423854264,1780452641000,-600.0,0.00018457,2]
[423854256,1780452641000,-300.0,0.00018096,2]
[423854267,1780452641000,-335.823,0.00018723,2]
[423854288,1780452641000,-151.5,0.00019726,2]
[423854281,1780452641000,-216.29514215,0.00019726,2]
[423854286,1780452641000,-222.89493375,0.00019726,2]
[423854284,1780452641000,-151.5,0.00019726,2]
[423854283,1780452641000,-151.5,0.00019726,2]
[423854282,1780452641000,-154.83142802,0.00019726,2]
[423854280,1780452641000,-151.5,0.00019726,2]
[423854278,1780452641000,-206.23411562,0.00019726,2]
[423854279,1780452641000,-151.5,0.00019726,2]
[423854275,1780452641000,-324.48096481,0.00019725,2]
[423854285,1780452641000,-199.2985865,0.00019726,2]
[423854276,1780452641000,-500.0,0.00019725,2]
[423854277,1780452641000,-284.75471524,0.00019726,2]
[423854268,1780452641000,-2080.70612584,0.00018723,2]
[423854271,1780452641000,-32.11325308,0.000192,2]
[423854272,1780452641000,-1967.88674692,0.000192,2]
[423854266,1780452641000,-444.0,0.0001848,2]
[423854287,1780452641000,-151.5,0.00019726,2]
[423854270,1780452641000,-501.34824319,0.00018757,2]
[423854274,1780452641000,-500.0,0.00019725,2]
[423854273,1780452641000,-2000.0,0.000195,3]
[423854269,1780452641000,-125.29387416,0.00018723,2]
[423854290,1780452642000,-202.9649572,0.00019726,2]
[423854291,1780452642000,-157.91058507,0.00019726,2]
[423854292,1780452642000,-153.56458453,0.00019726,2]
[423854297,1780452642000,-154.77690238,0.00019726,2]
[423854294,1780452642000,-500.0,0.00019726,2]
[423854293,1780452642000,-165.65661254,0.00019726,2]
[423854304,1780452642000,-225.63535129,0.00019796,2]
[423854300,1780452642000,-3066.33133409,0.00019796,2]
[423854306,1780452642000,-3066.33133409,0.00019796,2]
[423854295,1780452642000,-539.67002236,0.00019726,2]
[423854302,1780452642000,-3066.33133409,0.00019796,2]
[423854309,1780452642000,-3066.33133409,0.00019796,2]
[423854313,1780452642000,-3066.33133409,0.00019796,2]
[423854315,1780452642000,-1913.17880822,0.00019796,2]
[423854311,1780452642000,-3066.33133409,0.00019796,2]
[423854289,1780452642000,-201.09034158,0.00019726,2]
[423854298,1780452642000,-283.49695249,0.00019726,2]
[423854307,1780452642000,-3066.33133409,0.00019796,2]
[423854631,1780452646000,-1153.15252587,0.00019796,2]
[423854635,1780452646000,-1553.61911283,0.00019796,2]
[423854633,1780452646000,-3066.33133409,0.00019796,2]
[423854842,1780452746000,153.0,0.0002,120]
[423854843,1780452747000,153.0,0.000218,120]
[423854849,1780452867000,151.0,0.0002,120]
[423854850,1780452868000,151.0,0.000215,120]
[423854851,1780452870000,151.0,0.00023,120]
[423854885,1780453325000,151.09810021,0.00023476,120]
[423854886,1780453329000,168.84734414,0.00017,120]
[423854888,1780453348000,1625.35817295,0.00023476,120]
[423854962,1780453832000,-1064.87621958,0.00011073,2]
[423854969,1780453832000,-3831.87921325,0.00011185,2]
[423854967,1780453832000,-27.75953285,0.00011073,2]
[423854964,1780453832000,-3907.36424757,0.00011073,2]
[423855163,1780453838000,-151.55,0.000153,2]
[423855153,1780453838000,-300.0,0.00012239,2]
[423855152,1780453838000,-300.0,0.00012239,2]
[423855154,1780453838000,-300.0,0.00012239,2]
[423855155,1780453838000,-600.0,0.00012483,2]
[423855156,1780453838000,-151.55,0.000127,2]
[423855158,1780453838000,-283.30976121,0.00013355,2]
[423855161,1780453838000,-151.55,0.000147,2]
[423855157,1780453838000,-151.55,0.000133,2]
[423855159,1780453838000,-720.0,0.00013731,2]
[423855162,1780453838000,-864.0,0.00015104,2]
[423855164,1780453838000,-168.5765311,0.00015991,2]
[423855160,1780453838000,-151.55,0.00014,2]
[423855145,1780453838000,-300.0,0.00012239,2]
[423855142,1780453838000,-300.0,0.00012239,2]
[423855150,1780453838000,-47.02656929,0.00012239,2]
[423855151,1780453838000,-252.97343071,0.00012239,2]
[423855148,1780453838000,-300.0,0.00012239,2]
[423855146,1780453838000,-300.0,0.00012239,2]
[423855144,1780453838000,-300.0,0.00012239,2]
[423855141,1780453838000,-300.0,0.00012239,2]
[423855139,1780453838000,-300.0,0.00012239,2]
[423855138,1780453838000,-151.49,0.00012,2]
[423855137,1780453838000,-151.55,0.00012,2]
[423855143,1780453838000,-300.0,0.00012239,2]
[423855140,1780453838000,-300.0,0.00012239,2]
[423855136,1780453838000,-436.77033536,0.00011185,2]
[423855135,1780453838000,-731.35045139,0.00011185,2]
[423855149,1780453838000,-300.0,0.00012239,2]
[423855166,1780453838000,-151.55,0.000166,2]
[423855147,1780453838000,-300.0,0.00012239,2]
[423855165,1780453838000,-151.55,0.00016,2]
[423855176,1780453838000,-500.0,0.00018241,2]
[423855192,1780453838000,-2981.69,0.00018515,2]
[423855194,1780453838000,-794.56,0.00018515,2]
[423855193,1780453838000,-575.20849939,0.00018515,2]
[423855188,1780453838000,-1000.0,0.00018242,2]
[423855187,1780453838000,-500.0,0.00018242,2]
[423855189,1780453838000,-1000.0,0.00018276,2]
[423855186,1780453838000,-509.41431448,0.00018242,2]
[423855185,1780453838000,-631.98,0.00018242,2]
[423855190,1780453838000,-244.0,0.00018276,2]
[423855182,1780453838000,-262.863742,0.00018242,2]
[423855179,1780453838000,-529.66622977,0.00018242,2]
[423855183,1780453838000,-384.90530104,0.00018242,2]
[423855181,1780453838000,-500.0,0.00018242,2]
[423855195,1780453838000,-500.0,0.00018515,2]
[423855184,1780453838000,-514.71018049,0.00018242,2]
[423855168,1780453838000,-151.55,0.000173,2]
[423855177,1780453838000,-644.36779605,0.00018242,2]
[423855178,1780453838000,-287.75587161,0.00018242,2]
[423855167,1780453838000,-1000.0,0.00016615,2]
[423855191,1780453838000,-472.30287389,0.00018515,2]
[423855170,1780453838000,-151.55,0.00018,2]
[423855169,1780453838000,-192.4058761,0.00017519,2]
[423855172,1780453838000,-2981.69,0.00018241,2]
[423855174,1780453838000,-794.56,0.00018241,2]
[423855171,1780453838000,-500.0,0.00018241,2]
[423855173,1780453838000,-500.0,0.00018241,2]
[423855180,1780453838000,-568.19172529,0.00018242,2]
[423855196,1780453838000,-500.0,0.00018515,2]
[423855175,1780453838000,-500.0,0.00018241,2]
[423855206,1780453839000,-500.0,0.00018789,2]
[423855210,1780453839000,-1573.9508291,0.00018988,2]
[423855211,1780453839000,-430.30363492,0.00019049,2]
[423855213,1780453839000,-794.56,0.00019063,2]
[423855212,1780453839000,-2981.69,0.00019063,2]
[423855227,1780453839000,-503.83261838,0.00019337,2]
[423855229,1780453839000,-500.0,0.00019338,2]
[423855220,1780453839000,-599.94353491,0.00019199,2]
[423855230,1780453839000,-172.50836437,0.00019472,2]
[423855231,1780453839000,-500.0,0.00019472,2]
[423855208,1780453839000,-500.0,0.0001879,2]
[423855219,1780453839000,-500.0,0.00019199,2]
[423855217,1780453839000,-500.0,0.00019199,2]
[423855200,1780453839000,-151.55,0.000186,2]
[423855214,1780453839000,-500.0,0.00019063,2]
[423855215,1780453839000,-631.98,0.00019064,2]
[423855216,1780453839000,-500.0,0.00019064,2]
[423855207,1780453839000,-631.98,0.0001879,2]
[423855205,1780453839000,-500.0,0.00018789,2]
[423855202,1780453839000,-185.0,0.00018703,2]
[423855199,1780453839000,-500.0,0.00018516,2]
[423855197,1780453839000,-205.60189385,0.00018516,2]
[423855198,1780453839000,-631.98,0.00018516,2]
[423855201,1780453839000,-444.0,0.00018703,2]
[423855204,1780453839000,-794.56,0.00018789,2]
[423855203,1780453839000,-2981.69,0.00018789,2]
[423855222,1780453839000,-3000.0,0.000192,2]
[423855209,1780453839000,-160.0,0.00018972,2]
[423855225,1780453839000,-2981.69,0.00019337,2]
[423855228,1780453839000,-631.98,0.00019338,2]
[423855218,1780453839000,-503.32210914,0.00019199,2]
[423855255,1780453839000,-652.13059023,0.00019676,2]
[423855223,1780453839000,-347.197,0.0001925,2]
[423855251,1780453839000,-300.0,0.00019675,3]
[423855254,1780453839000,-2698.15832941,0.00019676,2]
[423855248,1780453839000,-794.56,0.00019611,2]
[423855247,1780453839000,-2981.69,0.00019611,2]
[423855253,1780453839000,-901958.75809569,0.00019676,2]
[423855252,1780453839000,-218.62999767,0.00019675,2]
[423855249,1780453839000,-631.98,0.00019612,2]
[423855246,1780453839000,-3000.0,0.000196,3]
[423855245,1780453839000,-3421.72534961,0.00019575,2]
[423855243,1780453839000,-354.9986627,0.00019472,2]
[423855244,1780453839000,-500.0,0.00019473,2]
[423855250,1780453839000,-497.51674751,0.00019612,2]
[423855242,1780453839000,-500.0,0.00019472,2]
[423855221,1780453839000,-2414.02,0.00019199,2]
[423855224,1780453839000,-151.55,0.000193,2]
[423855226,1780453839000,-794.56,0.00019337,2]
[423855233,1780453839000,-183.14455807,0.00019472,2]
[423855239,1780453839000,-568.63623522,0.00019472,2]
[423855232,1780453839000,-180.48730331,0.00019472,2]
[423855235,1780453839000,-510.04734,0.00019472,2]
[423855234,1780453839000,-152.20735908,0.00019472,2]
[423855238,1780453839000,-500.0,0.00019472,2]
[423855237,1780453839000,-500.0,0.00019472,2]
[423855240,1780453839000,-533.17565398,0.00019472,2]
[423855236,1780453839000,-500.0,0.00019472,2]
[423855241,1780453839000,-500.81681588,0.00019472,2]
[423855328,1780453840000,-60.63876308,0.0001824,2]
[423855711,1780453844000,-2518.24830746,0.00019676,2]
[423855709,1780453844000,-446.44638189,0.0001824,2]
[423855961,1780453846000,-2386.89478354,0.00019676,2]
[423855959,1780453846000,-1018.69633129,0.00019676,2]
[423855963,1780453846000,-622.06039237,0.00019676,2]
[423856015,1780453846000,-5000.0,0.00018058,2]
[423856017,1780453846000,-6247.34423703,0.00019676,2]
[423855951,1780453846000,-42000.0,0.00019676,2]
[423856351,1780454000000,22323.62895654,8.201e-05,2]
[423856350,1780454000000,520.0,8.201e-05,2]
[423856353,1780454300000,21099.72605279,8.201e-05,2]
[423856361,1780454600000,155.0,8.201e-05,2]
[423856379,1780454836000,-1298.82976033,9.606e-05,2]
[423856383,1780455016000,-151.0,9.51e-05,2]
[423856427,1780455032000,-637.35818979,9.51e-05,2]
[423856425,1780455032000,-484.06997962,9.51e-05,2]
[423856434,1780455032000,-433.45811007,9.51e-05,2]
[423856513,1780455038000,-3294.11372052,9.51e-05,2]
[423856516,1780455038000,-151.25,0.00012,2]
[423856514,1780455038000,-637.3470115,0.0001,2]
[423856515,1780455038000,-151.26,0.00012,2]
[423856518,1780455038000,-151.26,0.000152,2]
[423856520,1780455038000,-186.58635219,0.00016329,2]
[423856517,1780455038000,-151.26,0.000136,2]
[423856521,1780455038000,-151.26,0.000168,2]
[423856519,1780455038000,-1000.0,0.00015437,2]
[423856526,1780455038000,-300.0,0.00017306,2]
[423856525,1780455038000,-373.17270439,0.00017121,2]
[423856524,1780455038000,-6557.7755817,0.00016968,2]
[423856523,1780455038000,-300.0,0.00016967,2]
[423856527,1780455038000,-300.0,0.00017306,2]
[423856522,1780455038000,-1200.0,0.00016965,2]
[423856580,1780455039000,-501.79059493,0.00017647,2]
[423856583,1780455039000,-502.98762282,0.00017647,2]
[423856579,1780455039000,-522.38376985,0.00017647,2]
[423856578,1780455039000,-510.74902462,0.00017647,2]
[423856570,1780455039000,-501.68607292,0.00017647,2]
[423856562,1780455039000,-507.56940072,0.00017646,2]
[423856561,1780455039000,-619.8,0.00017646,2]
[423856565,1780455039000,-507.37720623,0.00017647,2]
[423856563,1780455039000,-500.0,0.00017647,2]
[423856582,1780455039000,-510.19870393,0.00017647,2]
[423856559,1780455039000,-500.0,0.00017646,2]
[423856567,1780455039000,-504.73747116,0.00017647,2]
[423856564,1780455039000,-510.57201662,0.00017647,2]
[423856581,1780455039000,-501.89850231,0.00017647,2]
[423856571,1780455039000,-531.60322468,0.00017647,2]
[423856572,1780455039000,-501.73183399,0.00017647,2]
[423856568,1780455039000,-501.72155059,0.00017647,2]
[423856577,1780455039000,-501.72360647,0.00017647,2]
[423856574,1780455039000,-502.77385791,0.00017647,2]
[423856576,1780455039000,-501.17520262,0.00017647,2]
[423856575,1780455039000,-503.54029154,0.00017647,2]
[423856585,1780455039000,-504.01133788,0.00017647,2]
[423856595,1780455039000,-500.0,0.00017647,2]
[423856596,1780455039000,-500.0,0.00017647,2]
[423856584,1780455039000,-577.55104943,0.00017647,2]
[423856587,1780455039000,-501.1400325,0.00017647,2]
[423856597,1780455039000,-500.0,0.00017647,2]
[423856590,1780455039000,-505.35548427,0.00017647,2]
[423856588,1780455039000,-500.0,0.00017647,2]
[423856573,1780455039000,-505.61640209,0.00017647,2]
[423856557,1780455039000,-500.0,0.00017646,2]
[423856558,1780455039000,-500.0,0.00017646,2]
[423856566,1780455039000,-504.74463371,0.00017647,2]
[423856530,1780455039000,-300.0,0.00017306,2]
[423856529,1780455039000,-300.0,0.00017306,2]
[423856528,1780455039000,-300.0,0.00017306,2]
[423856542,1780455039000,-500.0,0.00017546,2]
[423856531,1780455039000,-300.0,0.00017306,2]
[423856532,1780455039000,-300.0,0.00017306,2]
[423856541,1780455039000,-500.0,0.00017546,2]
[423856534,1780455039000,-300.0,0.00017306,2]
[423856536,1780455039000,-300.0,0.00017306,2]
[423856535,1780455039000,-300.0,0.00017306,2]
[423856533,1780455039000,-300.0,0.00017306,2]
[423856540,1780455039000,-300.0,0.00017306,2]
[423856538,1780455039000,-300.0,0.00017306,2]
[423856537,1780455039000,-300.0,0.00017306,2]
[423856569,1780455039000,-501.32864556,0.00017647,2]
[423856539,1780455039000,-300.0,0.00017306,2]
[423856545,1780455039000,-500.0,0.00017646,2]
[423856548,1780455039000,-500.0,0.00017646,2]
[423856546,1780455039000,-500.0,0.00017646,2]
[423856554,1780455039000,-500.0,0.00017646,2]
[423856547,1780455039000,-500.0,0.00017646,2]
[423856549,1780455039000,-500.0,0.00017646,2]
[423856552,1780455039000,-500.0,0.00017646,2]
[423856551,1780455039000,-233.92743666,0.00017646,2]
[423856553,1780455039000,-500.0,0.00017646,2]
[423856550,1780455039000,-2236.27,0.00017646,2]
[423856544,1780455039000,-505.66007791,0.00017546,2]
[423856555,1780455039000,-538.11582105,0.00017646,2]
[423856556,1780455039000,-500.0,0.00017646,2]
[423856591,1780455039000,-501.99471966,0.00017647,2]
[423856543,1780455039000,-500.0,0.00017546,2]
[423856593,1780455039000,-500.0,0.00017647,2]
[423856560,1780455039000,-500.73536563,0.00017646,2]
[423856589,1780455039000,-501.09068983,0.00017647,2]
[423856632,1780455039000,-500.0,0.00017647,2]
[423856630,1780455039000,-500.0,0.00017647,2]
[423856634,1780455039000,-500.0,0.00017647,2]
[423856629,1780455039000,-500.0,0.00017647,2]
[423856627,1780455039000,-500.0,0.00017647,2]
[423856640,1780455039000,-500.0,0.00017647,2]
[423856638,1780455039000,-500.0,0.00017647,2]
[423856636,1780455039000,-500.0,0.00017647,2]
[423856633,1780455039000,-500.0,0.00017647,2]
[423856637,1780455039000,-500.0,0.00017647,2]
[423856635,1780455039000,-500.0,0.00017647,2]
[423856642,1780455039000,-500.0,0.00017647,2]
[423856641,1780455039000,-500.0,0.00017647,2]
[423856649,1780455039000,-500.0,0.00017647,2]
[423856639,1780455039000,-518.66611694,0.00017647,2]
[423856647,1780455039000,-500.0,0.00017647,2]
[423856645,1780455039000,-500.0,0.00017647,2]
[423856646,1780455039000,-279.51761312,0.00017647,2]
[423856643,1780455039000,-500.0,0.00017647,2]
[423856651,1780455039000,-500.0,0.00017647,2]
[423856650,1780455039000,-500.0,0.00017647,2]
[423856652,1780455039000,-505.42835184,0.00017647,2]
[423856654,1780455039000,-503.17971199,0.00017647,2]
[423856658,1780455039000,-503.19768775,0.00017647,2]
[423856655,1780455039000,-502.8977882,0.00017647,2]
[423856657,1780455039000,-501.3239235,0.00017647,2]
[423856656,1780455039000,-501.99692686,0.00017647,2]
[423856653,1780455039000,-521.65198966,0.00017647,2]
[423856659,1780455039000,-500.0,0.00017647,2]
[423856586,1780455039000,-503.75431731,0.00017647,2]
[423856644,1780455039000,-500.0,0.00017647,2]
[423856631,1780455039000,-500.0,0.00017647,2]
[423856648,1780455039000,-500.0,0.00017647,2]
[423856626,1780455039000,-500.0,0.00017647,2]
[423856594,1780455039000,-500.0,0.00017647,2]
[423856628,1780455039000,-500.0,0.00017647,2]
[423856592,1780455039000,-510.71273812,0.00017647,2]
[423856599,1780455039000,-507.74009358,0.00017647,2]
[423856608,1780455039000,-503.35668587,0.00017647,2]
[423856610,1780455039000,-500.0,0.00017647,2]
[423856609,1780455039000,-502.53245606,0.00017647,2]
[423856611,1780455039000,-500.0,0.00017647,2]
[423856601,1780455039000,-158.73693347,0.00017647,2]
[423856602,1780455039000,-501.7687105,0.00017647,2]
[423856607,1780455039000,-500.0,0.00017647,2]
[423856604,1780455039000,-500.0,0.00017647,2]
[423856598,1780455039000,-500.85229441,0.00017647,2]
[423856606,1780455039000,-500.0,0.00017647,2]
[423856605,1780455039000,-503.70873105,0.00017647,2]
[423856600,1780455039000,-500.0,0.00017647,2]
[423856613,1780455039000,-500.0,0.00017647,2]
[423856618,1780455039000,-490.13635291,0.00017647,2]
[423856603,1780455039000,-500.0,0.00017647,2]
[423856617,1780455039000,-333.48347191,0.00017647,2]
[423856614,1780455039000,-500.0,0.00017647,2]
[423856619,1780455039000,-500.0,0.00017647,2]
[423856621,1780455039000,-500.0,0.00017647,2]
[423856615,1780455039000,-507.74900138,0.00017647,2]
[423856622,1780455039000,-500.0,0.00017647,2]
[423856620,1780455039000,-500.0,0.00017647,2]
[423856612,1780455039000,-504.14566195,0.00017647,2]
[423856625,1780455039000,-500.0,0.00017647,2]
[423856623,1780455039000,-500.0,0.00017647,2]
[423856624,1780455039000,-500.0,0.00017647,2]
[423856616,1780455039000,-500.0,0.00017647,2]
[423856707,1780455040000,-500.0,0.00017648,2]
[423856706,1780455040000,-3150.47,0.00017648,2]
[423856702,1780455040000,-500.0,0.00017648,2]
[423856697,1780455040000,-500.0,0.00017648,2]
[423856693,1780455040000,-504.72732335,0.00017648,2]
[423856700,1780455040000,-500.0,0.00017648,2]
[423856696,1780455040000,-503.6628235,0.00017648,2]
[423856705,1780455040000,-500.0,0.00017648,2]
[423856703,1780455040000,-501.35948015,0.00017648,2]
[423856701,1780455040000,-549.73584038,0.00017648,2]
[423856698,1780455040000,-502.26875889,0.00017648,2]
[423856704,1780455040000,-503.86106386,0.00017648,2]
[423856708,1780455040000,-602.6,0.00017648,2]
[423856699,1780455040000,-500.0,0.00017648,2]
[423856713,1780455040000,-501.76222647,0.0001782,2]
[423856732,1780455040000,-506.98951524,0.00017921,2]
[423856710,1780455040000,-554.03839391,0.00017648,2]
[423856715,1780455040000,-503.72376338,0.0001782,2]
[423856716,1780455040000,-500.0,0.0001792,2]
[423856714,1780455040000,-502.63764867,0.0001782,2]
[423856711,1780455040000,-559.75905658,0.0001765,2]
[423856718,1780455040000,-505.88035886,0.0001792,2]
[423856712,1780455040000,-600.0,0.00017651,2]
[423856717,1780455040000,-503.527688,0.0001792,2]
[423856720,1780455040000,-500.0,0.0001792,2]
[423856730,1780455040000,-500.0,0.00017921,2]
[423856719,1780455040000,-500.0,0.0001792,2]
[423856731,1780455040000,-515.48114047,0.00017921,2]
[423856722,1780455040000,-500.0,0.0001792,2]
[423856694,1780455040000,-614.85171642,0.00017648,2]
[423856709,1780455040000,-500.0,0.00017648,2]
[423856695,1780455040000,-521.06978655,0.00017648,2]
[423856663,1780455040000,-500.0,0.00017647,2]
[423856685,1780455040000,-2582.04503429,0.00017647,2]
[423856721,1780455040000,-2236.27,0.0001792,2]
[423856664,1780455040000,-501.44997345,0.00017647,2]
[423856660,1780455040000,-507.24997336,0.00017647,2]
[423856661,1780455040000,-500.0,0.00017647,2]
[423856662,1780455040000,-503.54157878,0.00017647,2]
[423856665,1780455040000,-500.0,0.00017647,2]
[423856666,1780455040000,-153.04099837,0.00017647,2]
[423856670,1780455040000,-2582.04503429,0.00017647,2]
[423856672,1780455040000,-2582.04503429,0.00017647,2]
[423856669,1780455040000,-2582.04503429,0.00017647,2]
[423856677,1780455040000,-2582.04503429,0.00017647,2]
[423856667,1780455040000,-2582.04503429,0.00017647,2]
[423856671,1780455040000,-2582.04503429,0.00017647,2]
[423856676,1780455040000,-2582.04503429,0.00017647,2]
[423856674,1780455040000,-2582.04503429,0.00017647,2]
[423856673,1780455040000,-2582.04503429,0.00017647,2]
[423856675,1780455040000,-2582.04503429,0.00017647,2]
[423856688,1780455040000,-2582.04503429,0.00017647,2]
[423856683,1780455040000,-2582.04503429,0.00017647,2]
[423856684,1780455040000,-2582.04503429,0.00017647,2]
[423856691,1780455040000,-658.88,0.00017648,2]
[423856686,1780455040000,-2582.04503429,0.00017647,2]
[423856687,1780455040000,-2582.04503429,0.00017647,2]
[423856692,1780455040000,-526.15274742,0.00017648,2]
[423856690,1780455040000,-500.0,0.00017647,2]
[423856689,1780455040000,-503.45095872,0.00017647,2]
[423856682,1780455040000,-2582.04503429,0.00017647,2]
[423856680,1780455040000,-2582.04503429,0.00017647,2]
[423856678,1780455040000,-2582.04503429,0.00017647,2]
[423856681,1780455040000,-2582.04503429,0.00017647,2]
[423856668,1780455040000,-2582.04503429,0.00017647,2]
[423856679,1780455040000,-2582.04503429,0.00017647,2]
[423856723,1780455040000,-500.0,0.0001792,2]
[423856727,1780455040000,-500.0,0.0001792,2]
[423856794,1780455040000,-308.83818244,0.00018002,2]
[423856763,1780455040000,-500.0,0.00017921,2]
[423856762,1780455040000,-536.55954681,0.00017921,2]
[423856773,1780455040000,-501.18162413,0.00017921,2]
[423856772,1780455040000,-534.63049266,0.00017921,2]
[423856764,1780455040000,-488.60647331,0.00017921,2]
[423856769,1780455040000,-501.46878824,0.00017921,2]
[423856768,1780455040000,-501.7477837,0.00017921,2]
[423856766,1780455040000,-500.0,0.00017921,2]
[423856767,1780455040000,-505.46050581,0.00017921,2]
[423856770,1780455040000,-505.57201877,0.00017921,2]
[423856775,1780455040000,-502.00927441,0.00017921,2]
[423856785,1780455040000,-502.73655143,0.00017922,2]
[423856776,1780455040000,-501.38344734,0.00017921,2]
[423856774,1780455040000,-510.91991064,0.00017921,2]
[423856771,1780455040000,-505.93311476,0.00017921,2]
[423856787,1780455040000,-500.0,0.00017922,2]
[423856777,1780455040000,-501.57239008,0.00017921,2]
[423856779,1780455040000,-574.92528949,0.00017921,2]
[423856786,1780455040000,-500.0,0.00017922,2]
[423856780,1780455040000,-506.82290461,0.00017921,2]
[423856783,1780455040000,-500.0,0.00017922,2]
[423856781,1780455040000,-500.0,0.00017921,2]
[423856782,1780455040000,-658.88,0.00017922,2]
[423856784,1780455040000,-511.43377766,0.00017922,2]
[423856788,1780455040000,-3150.47,0.00017922,2]
[423856790,1780455040000,-602.6,0.00017922,2]
[423856789,1780455040000,-500.0,0.00017922,2]
[423856793,1780455040000,-746.34540878,0.00018002,2]
[423856792,1780455040000,-207.21214631,0.00018002,2]
[423856724,1780455040000,-500.0,0.0001792,2]
[423856778,1780455040000,-501.28349674,0.00017921,2]
[423856765,1780455040000,-501.46673352,0.00017921,2]
[423856791,1780455040000,-500.0,0.00017922,2]
[423856760,1780455040000,-500.0,0.00017921,2]
[423856728,1780455040000,-500.0,0.0001792,2]
[423856726,1780455040000,-500.0,0.0001792,2]
[423856725,1780455040000,-500.0,0.0001792,2]
[423856729,1780455040000,-619.8,0.0001792,2]
[423856733,1780455040000,-503.9249646,0.00017921,2]
[423856737,1780455040000,-504.27729678,0.00017921,2]
[423856738,1780455040000,-517.31778921,0.00017921,2]
[423856735,1780455040000,-504.84201829,0.00017921,2]
[423856761,1780455040000,-618.17990394,0.00017921,2]
[423856734,1780455040000,-502.50842038,0.00017921,2]
[423856740,1780455040000,-500.0,0.00017921,2]
[423856739,1780455040000,-503.71036771,0.00017921,2]
[423856741,1780455040000,-513.78006284,0.00017921,2]
[423856742,1780455040000,-501.73285913,0.00017921,2]
[423856746,1780455040000,-500.0,0.00017921,2]
[423856736,1780455040000,-501.60655948,0.00017921,2]
[423856745,1780455040000,-500.0,0.00017921,2]
[423856756,1780455040000,-500.0,0.00017921,2]
[423856743,1780455040000,-501.48171992,0.00017921,2]
[423856757,1780455040000,-500.0,0.00017921,2]
[423856754,1780455040000,-501.89785986,0.00017921,2]
[423856752,1780455040000,-501.49660942,0.00017921,2]
[423856753,1780455040000,-542.79086167,0.00017921,2]
[423856750,1780455040000,-502.29969275,0.00017921,2]
[423856755,1780455040000,-500.0,0.00017921,2]
[423856749,1780455040000,-501.18470542,0.00017921,2]
[423856758,1780455040000,-507.16436922,0.00017921,2]
[423856747,1780455040000,-500.0,0.00017921,2]
[423856759,1780455040000,-500.0,0.00017921,2]
[423856748,1780455040000,-620.76949919,0.00017921,2]
[423856744,1780455040000,-502.1391207,0.00017921,2]
[423856751,1780455040000,-500.0,0.00017921,2]
[423856836,1780455041000,-502.97761555,0.00018239,2]